[Event "AUT Bundesliga Women 2021-22"]
[Site "Austria"]
[Date "2022.03.25"]
[Round "5.9"]
[White "Mihok-Juhasz, Barbara"]
[Black "Motycakova, Monika"]
[Result "1-0"]
[ECO "C85"]
[WhiteElo "2275"]
[BlackElo "2102"]
[Annotator "ChessBase"]
[PlyCount "99"]
[EventDate "2021.11.06"]
[EventType "team-tourn"]
[EventCountry "AUT"]
[SourceTitle "playchess.com"]
[Source "ChessBase"]
[SourceQuality "1"]
[TimeControl "40/5400+30:1800+30"]

1. e4 {[%emt 0:00:05]} e5 {[%emt 0:00:05]} 2. Nf3 {[%emt 0:00:04]} Nc6 {[%emt 0:00:12]} 3. Bb5 {[%emt 0:00:05]} a6 {[%emt 0:00:04]} 4. Ba4 {[%emt 0:00:05]} Nf6 {[%emt 0:00:09]} 5. O-O {[%emt 0:00:07]} Be7 {[%emt 0:00:21]} 6. Bxc6 {[%emt 0:00:10]} dxc6 {[%emt 0:00:07]} 7. d3 {[%emt 0:00:04]} Nd7 {[%emt 0:00:19]} 8. Nbd2 {[%emt 0:00:17]} O-O {[%emt 0:00:32]} 9. Nc4 {[%emt 0:00:08]} f6 {[%emt 0:00:25]} 10. Nh4 {[%emt 0:00:18]} Nc5 {[%emt 0:01:09]} 11. Nf5 {[%emt 0:00:28]} Bxf5 {[%emt 0:00:10]} 12. exf5 {[%emt 0:00:05]} Qd5 {[%emt 0:00:25]} 13. Qg4 {[%emt 0:00:14]} Rfe8 {[%emt 0:01:15]} 14. Re1 {[%emt 0:03:21]} Rad8 {[%emt 0:00:34]} 15. Nd2 {[%emt 0:00:23]} Bf8 {[%emt 0:01:10]} 16. h3 {[%emt 0:02:08]} Kh8 {[%emt 0:22:06]} 17. a4 {[%emt 0:17:39]} a5 {[%emt 0:05:20]} 18. Ne4 {[%emt 0:09:36]} Qf7 {[%emt 0:17:25]} 19. Bd2 {[%emt 0:04:42]} b6 {[%emt 0:03:01]} 20. Qf3 {[%emt 0:19:18]} Rd5 {[%emt 0:06:36]} 21. Bc3 {[%emt 0:04:03]} Red8 {[%emt 0:01:33]} 22. g4 {[%emt 0:00:53]} Na6 {[%emt 0:08:44]} 23. Re2 {[%emt 0:08:00]} Bb4 {[%emt 0:01:15]} 24. h4 {[%emt 0:08:26]} c5 {[%emt 0:12:38]} 25. Nd2 {[%emt 0:06:00]} Bxc3 {[%emt 0:03:49]} 26. bxc3 {[%emt 0:00:05]} Nb8 {[%emt 0:00:28]} 27. Kg2 {[%emt 0:04:50]} Nc6 {[%emt 0:02:52]} 28. Nc4 {[%emt 0:01:52]} Ne7 {[%emt 0:02:10]} 29. Re4 {[%emt 0:03:13]} R5d7 {[%emt 0:02:11]} 30. Ne3 {[%emt 0:00:20]} Nd5 {[%emt 0:03:36]} 31. Nxd5 {[%emt 0:00:09]} Qxd5 {[%emt 0:01:03]} 32. Rae1 {[%emt 0:02:53]} Qa2 {[%emt 0:01:22]} 33. R1e2 {[%emt 0:00:25]} Qa1 {[%emt 0:02:36]} 34. Rc4 {[%emt 0:00:40]} Qd1 {[%emt 0:00:35]} 35. Qe3 {[%emt 0:00:39]} Kg8 {[%emt 0:01:01]} 36. g5 Rf8 {[%emt 0:00:21]} 37. g6 {[%emt 0:04:11]} h6 {[%emt 0:00:31]} 38. f4 {[%emt 0:00:12]} Rd5 {[%emt 0:00:41]} 39. Qf3 {[%emt 0:01:32]} c6 {[%emt 0:00:19]} 40. Rce4 {[%emt 0:00:15]} Qa1 {[%emt 0:00:41]} 41. fxe5 {[%emt 0:31:58]} Rxe5 {[%emt 0:03:47]} 42. Rxe5 {[%emt 0:00:00]} fxe5 {[%emt 0:00:07]} 43. Qxc6 {[%emt 0:00:00]} Qxc3 {[%emt 0:08:27]} 44. Qe6+ {[%emt 0:00:00]} Kh8 {[%emt 0:00:04]} 45. Qe7 {[%emt 0:00:00]} Kg8 {[%emt 0:01:44]} 46. Qe6+ {[%emt 0:00:00]} Kh8 {[%emt 0:00:05]} 47. Qd6 {[%emt 0:00:00]} Kg8 {[%emt 0:04:36]} 48. Qd5+ {[%emt 0:00:00]} Kh8 {[%emt 0:00:11]} 49. f6 {[%emt 0:00:00]} Qb4 {[%emt 0:06:12]} 50. c4 {[%emt 0:00:00]} 1-0

[Event "AUT Bundesliga Women 2021-22"]
[Site "Austria"]
[Date "2022.03.25"]
[Round "5.10"]
[White "Kurapova, Olga"]
[Black "Miturova, Magdalena"]
[Result "1/2-1/2"]
[ECO "C68"]
[WhiteElo "1893"]
[BlackElo "2205"]
[Annotator "NA"]
[PlyCount "60"]
[EventDate "2021.11.06"]
[EventType "team-tourn"]
[EventCountry "AUT"]
[SourceTitle "playchess.com"]
[Source "ChessBase"]
[SourceQuality "1"]
[TimeControl "40/5400+30:1800+30"]

1. e4 {[%emt 0:00:02]} e5 {[%emt 0:00:21]} 2. Nf3 {[%emt 0:00:09]} Nc6 {[%emt 0:00:06]} 3. Bb5 {[%emt 0:00:07]} a6 {[%emt 0:00:14]} 4. Bxc6 {[%emt 0:00:08]} dxc6 {[%emt 0:00:04]} 5. O-O {[%emt 0:00:06]} f6 {[%emt 0:00:25]} 6. d4 {[%emt 0:00:07]} exd4 {[%emt 0:00:10]} 7. Nxd4 {[%emt 0:00:04]} c5 {[%emt 0:00:10]} 8. Nb3 {[%emt 0:00:05]} Qxd1 {[%emt 0:00:22]} 9. Rxd1 {[%emt 0:00:06]} Bg4 {[%emt 0:01:24]} 10. f3 {[%emt 0:02:30]} Be6 {[%emt 0:00:21]} 11. Bf4 {[%emt 0:00:09]} c4 {[%emt 0:00:36]} 12. Nd4 {[%emt 0:00:59]} O-O-O {[%emt 0:01:00]} 13. Nc3 {[%emt 0:00:34]} Bf7 {[%emt 0:07:34]} 14. a4 {[%emt 0:06:50]} Ne7 {[%emt 0:02:44]} 15. Kf2 {[%emt 0:01:50]} Ng6 {[%emt 0:04:12]} 16. Be3 {[%emt 0:02:35]} Ne5 {[%emt 0:01:43]} 17. h3 {[%emt 0:00:16]} h5 {[%emt 0:05:12]} 18. Nf5 {[%emt 0:06:36]} Re8 {[%emt 0:02:47]} 19. Nd5 {[%emt 0:02:50]} g6 {[%emt 0:13:04]} 20. Ng3 {[%emt 0:10:19]} Bg7 {[%emt 0:03:35]} 21. a5 {[%emt 0:03:36]} Re6 {[%emt 0:03:32]} 22. f4 {[%emt 0:10:00]} h4 {[%emt 0:04:34]} 23. Ne2 {[%emt 0:06:10]} Nc6 {[%emt 0:01:31]} 24. Nec3 {[%emt 0:00:52]} Rhe8 {[%emt 0:06:01]} 25. Ra4 {[%emt 0:02:45]} f5 {[%emt 0:03:31]} 26. e5 {[%emt 0:03:37]} g5 {[%emt 0:01:23]} 27. Rxc4 {[%emt 0:03:53]} gxf4 {[%emt 0:02:54]} 28. Bxf4 {[%emt 0:01:56]} Bxe5 {[%emt 0:01:49]} 29. Bxe5 {[%emt 0:00:26]} Rxe5 {[%emt 0:00:11]} 30. Rxh4 {[%emt 0:00:34]} Rd8 {[%emt 0:06:21]} 1/2-1/2

[Event "AUT Bundesliga Women 2021-22"]
[Site "Austria"]
[Date "2022.03.25"]
[Round "5.11"]
[White "Exler, Veronika"]
[Black "Wielander, Magdalena"]
[Result "1-0"]
[ECO "C00"]
[WhiteElo "2089"]
[BlackElo "1178"]
[Annotator "NA"]
[PlyCount "27"]
[EventDate "2021.11.06"]
[EventType "team-tourn"]
[EventCountry "AUT"]
[SourceTitle "playchess.com"]
[Source "ChessBase"]
[SourceQuality "1"]
[TimeControl "40/5400+30:1800+30"]

1. e4 {[%emt 0:00:01]} e6 {[%emt 0:00:08]} 2. d4 {[%emt 0:00:05]} d5 {[%emt 0:00:12]} 3. Bd3 {[%emt 0:00:06]} c5 {[%emt 0:00:21]} 4. exd5 {[%emt 0:00:46]} exd5 {[%emt 0:00:35]} 5. Qe2+ {[%emt 0:01:41]} Be6 {[%emt 0:02:50]} 6. Nf3 {[%emt 0:03:15]} Nc6 {[%emt 0:06:26]} 7. O-O {[%emt 0:14:08]} Qe7 {[%emt 0:08:59]} 8. Bg5 {[%emt 0:18:44]} f6 {[%emt 0:09:13]} 9. Re1 {[%emt 0:01:09]} Nxd4 {[%emt 0:14:28]} 10. Nxd4 {[%emt 0:01:21]} cxd4 {[%emt 0:02:28]} 11. Bd2 {[%emt 0:15:29]} Bf7 {[%emt 0:06:58]} 12. Qg4 {[%emt 0:02:13]} Be6 {[%emt 0:04:44]} 13. Rxe6 {[%emt 0:00:21]} h5 {[%emt 0:01:40]} 14. Rxe7+ {[%emt 0:01:35]} 1-0

[Event "AUT Bundesliga Women 2021-22"]
[Site "Austria"]
[Date "2022.03.25"]
[Round "5.12"]
[White "Wolf, Elena"]
[Black "Moerwald, Miriam"]
[Result "0-1"]
[ECO "C02"]
[WhiteElo "1147"]
[BlackElo "1735"]
[Annotator "NA"]
[PlyCount "56"]
[EventDate "2021.11.06"]
[EventType "team-tourn"]
[EventCountry "AUT"]
[SourceTitle "playchess.com"]
[Source "ChessBase"]
[SourceQuality "1"]
[TimeControl "40/5400+30:1800+30"]

1. e4 {[%emt 0:00:02]} e6 {[%emt 0:00:09]} 2. d4 {[%emt 0:00:06]} d5 {[%emt 0:00:13]} 3. e5 {[%emt 0:00:14]} c5 {[%emt 0:00:19]} 4. c3 {[%emt 0:00:08]} Nc6 {[%emt 0:00:26]} 5. Nf3 {[%emt 0:00:09]} Qb6 {[%emt 0:00:33]} 6. b3 {[%emt 0:14:50]} Bd7 {[%emt 0:04:44]} 7. Be3 {[%emt 0:03:17]} Rc8 {[%emt 0:06:37]} 8. Nbd2 {[%emt 0:08:22]} cxd4 {[%emt 0:10:31]} 9. cxd4 {[%emt 0:04:46]} Nb4 {[%emt 0:01:38]} 10. Rc1 {[%emt 0:08:11]} Rxc1 {[%emt 0:01:50]} 11. Qxc1 {[%emt 0:01:48]} Nxa2 {[%emt 0:01:06]} 12. Qb2 {[%emt 0:05:14]} Nb4 {[%emt 0:00:47]} 13. Be2 {[%emt 0:04:03]} Bb5 {[%emt 0:03:08]} 14. Bxb5+ {[%emt 0:14:40]} Qxb5 {[%emt 0:00:28]} 15. Qc3 {[%emt 0:05:15]} Nc6 {[%emt 0:03:20]} 16. Ng1 {[%emt 0:04:42]} Bb4 {[%emt 0:01:29]} 17. Qc2 {[%emt 0:01:21]} Nge7 {[%emt 0:02:03]} 18. Ne2 {[%emt 0:10:03]} Nf5 {[%emt 0:02:40]} 19. Qd1 {[%emt 0:06:54]} Qa5 {[%emt 0:02:20]} 20. Bf4 {[%emt 0:02:06]} Nfxd4 {[%emt 0:01:24]} 21. Nxd4 {[%emt 0:01:01]} Nxd4 {[%emt 0:00:34]} 22. O-O {[%emt 0:00:41]} Qb5 {[%emt 0:02:20]} 23. Re1 {[%emt 0:01:16]} Qd3 {[%emt 0:05:21]} 24. Bg5 {[%emt 0:02:11]} Bxd2 {[%emt 0:03:31]} 25. Bxd2 {[%emt 0:00:19]} Nxb3 {[%emt 0:02:12]} 26. Re2 {[%emt 0:01:17]} O-O {[%emt 0:04:03]} 27. h3 {[%emt 0:00:11]} Rc8 {[%emt 0:02:13]} 28. Re1 {[%emt 0:00:46]} Qxd2 {[%emt 0:00:36]} 0-1

[Event "AUT Bundesliga Women 2021-22"]
[Site "Austria"]
[Date "2022.03.25"]
[Round "5.13"]
[White "Schnegg, Anna-Lena"]
[Black "Ragger, Anna-Christina"]
[Result "1/2-1/2"]
[ECO "A25"]
[WhiteElo "2177"]
[BlackElo "2156"]
[Annotator "NA"]
[PlyCount "71"]
[EventDate "2021.11.06"]
[EventType "team-tourn"]
[EventCountry "AUT"]
[SourceTitle "playchess.com"]
[Source "ChessBase"]
[SourceQuality "1"]
[TimeControl "40/5400+30:1800+30"]

1. c4 {[%emt 0:00:05]} e5 {[%emt 0:00:07]} 2. Nc3 {[%emt 0:00:31]} Nc6 {[%emt 0:00:06]} 3. g3 {[%emt 0:00:06]} Bc5 {[%emt 0:00:15]} 4. Bg2 {[%emt 0:00:25]} a6 {[%emt 0:00:47]} 5. e3 {[%emt 0:00:59]} d6 {[%emt 0:00:35]} 6. Nf3 {[%emt 0:01:25]} Ba7 {[%emt 0:01:35]} 7. O-O {[%emt 0:03:42]} Nge7 {[%emt 0:00:26]} 8. b3 {[%emt 0:05:33]} O-O {[%emt 0:00:23]} 9. Bb2 {[%emt 0:12:24]} Bf5 {[%emt 0:01:13]} 10. d4 {[%emt 0:04:00]} f6 {[%emt 0:09:48]} 11. dxe5 {[%emt 0:08:50]} dxe5 {[%emt 0:06:57]} 12. Qxd8 {[%emt 0:08:08]} Rfxd8 {[%emt 0:00:26]} 13. Nh4 {[%emt 0:05:03]} Be6 {[%emt 0:14:55]} 14. Rad1 {[%emt 0:02:56]} Rxd1 {[%emt 0:05:55]} 15. Rxd1 {[%emt 0:00:10]} Rd8 {[%emt 0:00:11]} 16. Rxd8+ {[%emt 0:02:14]} Nxd8 {[%emt 0:00:05]} 17. Ba3 {[%emt 0:03:12]} Kf7 {[%emt 0:01:41]} 18. Nd5 {[%emt 0:13:04]} Nxd5 {[%emt 0:00:21]} 19. Bxd5 {[%emt 0:09:32]} Bxd5 {[%emt 0:01:55]} 20. cxd5 {[%emt 0:00:03]} g6 {[%emt 0:01:34]} 21. e4 {[%emt 0:01:08]} b5 {[%emt 0:05:00]} 22. Kg2 {[%emt 0:02:12]} Bd4 {[%emt 0:02:56]} 23. f4 {[%emt 0:02:54]} Bc3 {[%emt 0:05:48]} 24. Nf3 {[%emt 0:02:17]} h6 {[%emt 0:01:06]} 25. Bc1 {[%emt 0:04:30]} g5 {[%emt 0:01:10]} 26. Bd2 {[%emt 0:04:12]} Bxd2 {[%emt 0:14:09]} 27. Nxd2 {[%emt 0:00:03]} Nb7 {[%emt 0:00:04]} 28. Kf3 {[%emt 0:01:47]} h5 {[%emt 0:02:26]} 29. fxg5 {[%emt 0:01:23]} fxg5 {[%emt 0:00:05]} 30. g4 {[%emt 0:00:34]} Kg6 {[%emt 0:01:36]} 31. h3 {[%emt 0:00:18]} h4 {[%emt 0:05:25]} 32. b4 {[%emt 0:01:32]} Kf6 {[%emt 0:00:18]} 33. Nb3 {[%emt 0:01:01]} Ke7 {[%emt 0:00:28]} 34. Nc5 {[%emt 0:00:43]} Nxc5 {[%emt 0:00:40]} 35. bxc5 {[%emt 0:00:11]} a5 {[%emt 0:01:03]} 36. Ke3 {[%emt 0:00:19]} 1/2-1/2

[Event "AUT Bundesliga Women 2021-22"]
[Site "Austria"]
[Date "2022.03.25"]
[Round "5.14"]
[White "Berke, Ana"]
[Black "Mayrhuber, Nikola"]
[Result "0-1"]
[ECO "C07"]
[WhiteElo "2140"]
[BlackElo "2118"]
[Annotator "NA"]
[PlyCount "82"]
[EventDate "2021.11.06"]
[EventType "team-tourn"]
[EventCountry "AUT"]
[SourceTitle "playchess.com"]
[Source "ChessBase"]
[SourceQuality "1"]
[TimeControl "40/5400+30:1800+30"]

1. e4 {[%emt 0:00:03]} e6 {[%emt 0:00:12]} 2. d4 {[%emt 0:00:12]} d5 {[%emt 0:00:04]} 3. Nd2 {[%emt 0:00:05]} c5 {[%emt 0:00:05]} 4. c3 Nc6 {[%emt 0:05:36]} 5. Ngf3 {[%emt 0:02:48]} cxd4 {[%emt 0:13:26]} 6. cxd4 {[%emt 0:01:21]} dxe4 {[%emt 0:00:40]} 7. Nxe4 {[%emt 0:01:04]} Nf6 {[%emt 0:00:19]} 8. Nc3 {[%emt 0:02:27]} Bb4 {[%emt 0:02:03]} 9. Bd3 {[%emt 0:00:39]} O-O {[%emt 0:00:40]} 10. O-O {[%emt 0:00:12]} h6 {[%emt 0:03:51]} 11. a3 {[%emt 0:04:20]} Ba5 {[%emt 0:02:48]} 12. Bc2 {[%emt 0:01:32]} Re8 {[%emt 0:10:18]} 13. Re1 {[%emt 0:01:47]} Bb6 {[%emt 0:05:02]} 14. Be3 {[%emt 0:01:41]} e5 {[%emt 0:08:40]} 15. dxe5 {[%emt 0:05:15]} Nxe5 {[%emt 0:04:12]} 16. Nxe5 {[%emt 0:09:55]} Rxe5 {[%emt 0:00:47]} 17. Bxb6 {[%emt 0:01:10]} Rxe1+ {[%emt 0:00:12]} 18. Qxe1 {[%emt 0:00:08]} Qxb6 {[%emt 0:00:32]} 19. Nd5 {[%emt 0:10:44]} Qxb2 {[%emt 0:05:43]} 20. Nxf6+ {[%emt 0:01:07]} gxf6 {[%emt 0:00:12]} 21. Be4 {[%emt 0:04:51]} Be6 {[%emt 0:03:23]} 22. Rb1 {[%emt 0:02:42]} Qxa3 {[%emt 0:01:08]} 23. h3 {[%emt 0:01:05]} Rc8 {[%emt 0:06:02]} 24. Qd2 {[%emt 0:08:09]} Kg7 {[%emt 0:04:36]} 25. Qf4 {[%emt 0:07:43]} Rc4 {[%emt 0:05:17]} 26. Rd1 {[%emt 0:11:24]} Qc3 {[%emt 0:04:11]} 27. f3 {[%emt 0:05:47]} Qe5 {[%emt 0:02:27]} 28. Qd2 {[%emt 0:00:07]} b5 {[%emt 0:01:13]} 29. Bb1 {[%emt 0:01:43]} Bf5 {[%emt 0:04:44]} 30. Kh1 {[%emt 0:05:27]} Bxb1 {[%emt 0:01:14]} 31. Rxb1 {[%emt 0:00:04]} Qf5 {[%emt 0:00:27]} 32. Qe1 {[%emt 0:01:32]} Qg5 {[%emt 0:01:07]} 33. Qf1 {[%emt 0:06:23]} a6 {[%emt 0:00:14]} 34. Re1 {[%emt 0:01:17]} a5 {[%emt 0:01:14]} 35. Kh2 {[%emt 0:01:01]} Qf4+ {[%emt 0:00:49]} 36. g3 {[%emt 0:00:42]} Rc2+ {[%emt 0:01:03]} 37. Kh1 {[%emt 0:00:24]} Qxg3 {[%emt 0:01:36]} 38. Re2 {[%emt 0:00:17]} Rxe2 {[%emt 0:01:08]} 39. Qxe2 {[%emt 0:00:06]} Qxh3+ {[%emt 0:00:24]} 40. Kg1 {[%emt 0:00:03]} Qf5 {[%emt 0:00:33]} 41. Kh2 {[%emt 0:30:49]} Qe5+ {[%emt 0:30:10]} 0-1

[Event "AUT Bundesliga Women 2021-22"]
[Site "Austria"]
[Date "2022.03.25"]
[Round "5.15"]
[White "Konecny, Sophie"]
[Black "Hiebler, Laura"]
[Result "1/2-1/2"]
[ECO "E18"]
[WhiteElo "1835"]
[BlackElo "2021"]
[Annotator "NA"]
[PlyCount "61"]
[EventDate "2021.11.06"]
[EventType "team-tourn"]
[EventCountry "AUT"]
[SourceTitle "playchess.com"]
[Source "ChessBase"]
[SourceQuality "1"]
[TimeControl "40/5400+30:1800+30"]

1. d4 {[%emt 0:00:03]} Nf6 {[%emt 0:00:06]} 2. Nf3 {[%emt 0:00:07]} e6 {[%emt 0:00:29]} 3. c4 {[%emt 0:00:11]} b6 {[%emt 0:00:40]} 4. g3 {[%emt 0:00:54]} Bb7 {[%emt 0:00:56]} 5. Bg2 {[%emt 0:01:36]} Be7 {[%emt 0:02:17]} 6. Nc3 {[%emt 0:02:57]} O-O {[%emt 0:01:45]} 7. O-O {[%emt 0:01:33]} d5 {[%emt 0:08:16]} 8. b3 {[%emt 0:07:23]} Nbd7 {[%emt 0:03:24]} 9. Bb2 {[%emt 0:15:52]} Rc8 {[%emt 0:06:38]} 10. Rc1 {[%emt 0:03:06]} c5 {[%emt 0:21:35]} 11. cxd5 {[%emt 0:05:06]} Nxd5 {[%emt 0:01:24]} 12. Re1 {[%emt 0:13:13]} N7f6 {[%emt 0:08:00]} 13. e3 {[%emt 0:04:56]} cxd4 {[%emt 0:07:15]} 14. Nxd5 {[%emt 0:04:35]} Nxd5 {[%emt 0:04:04]} 15. Qxd4 {[%emt 0:09:41]} Bf6 {[%emt 0:03:14]} 16. Ne5 {[%emt 0:01:38]} Qe7 {[%emt 0:08:29]} 17. Qa4 {[%emt 0:06:16]} Bxe5 {[%emt 0:04:57]} 18. Bxe5 {[%emt 0:01:41]} Rfd8 {[%emt 0:03:08]} 19. Bb2 {[%emt 0:06:50]} a6 {[%emt 0:05:01]} 20. Red1 {[%emt 0:09:10]} b5 {[%emt 0:02:48]} 21. Qg4 {[%emt 0:02:28]} f6 {[%emt 0:00:18]} 22. Rxc8 {[%emt 0:01:11]} Bxc8 {[%emt 0:00:32]} 23. Qd4 {[%emt 0:00:41]} Rd7 {[%emt 0:01:17]} 24. Bf3 {[%emt 0:00:48]} Qd8 {[%emt 0:01:57]} 25. Qc5 {[%emt 0:00:32]} Bb7 {[%emt 0:01:29]} 26. Qc1 {[%emt 0:00:28]} Rc7 {[%emt 0:01:10]} 27. Qd2 {[%emt 0:00:18]} Qc8 {[%emt 0:00:19]} 28. Rc1 {[%emt 0:00:37]} h6 {[%emt 0:00:11]} 29. Bg2 {[%emt 0:00:25]} b4 {[%emt 0:00:49]} 30. Rxc7 {[%emt 0:00:36]} Qxc7 {[%emt 0:00:02]} 31. a3 {[%emt 0:00:34]} 1/2-1/2

[Event "AUT Bundesliga Women 2021-22"]
[Site "Austria"]
[Date "2022.03.25"]
[Round "5.16"]
[White "Krassnitzer, Maria"]
[Black "Wu, Min"]
[Result "0-1"]
[ECO "C47"]
[WhiteElo "1654"]
[BlackElo "1952"]
[Annotator "NA"]
[PlyCount "66"]
[EventDate "2021.11.06"]
[EventType "team-tourn"]
[EventCountry "AUT"]
[SourceTitle "playchess.com"]
[Source "ChessBase"]
[SourceQuality "1"]
[TimeControl "40/5400+30:1800+30"]

1. e4 {[%emt 0:00:02]} e5 {[%emt 0:00:33]} 2. Nf3 {[%emt 0:00:08]} Nc6 {[%emt 0:00:04]} 3. Nc3 {[%emt 0:00:40]} Nf6 {[%emt 0:00:08]} 4. Bc4 {[%emt 0:00:22]} Nxe4 {[%emt 0:12:50]} 5. Nxe4 {[%emt 0:00:48]} d5 {[%emt 0:00:05]} 6. Bxd5 {[%emt 0:00:10]} Qxd5 {[%emt 0:00:07]} 7. Nc3 {[%emt 0:00:54]} Qd8 {[%emt 0:04:37]} 8. O-O {[%emt 0:02:55]} Bg4 {[%emt 0:03:23]} 9. h3 {[%emt 0:07:14]} Bh5 {[%emt 0:03:10]} 10. Re1 {[%emt 0:03:01]} Be7 {[%emt 0:08:12]} 11. d3 {[%emt 0:10:44]} f6 {[%emt 0:13:14]} 12. Be3 {[%emt 0:07:39]} O-O {[%emt 0:02:26]} 13. Ne4 {[%emt 0:06:15]} f5 {[%emt 0:12:30]} 14. Ng3 {[%emt 0:03:29]} Bxf3 {[%emt 0:01:04]} 15. Qxf3 {[%emt 0:07:20]} f4 {[%emt 0:00:17]} 16. Qg4 {[%emt 0:00:40]} fxg3 {[%emt 0:05:55]} 17. fxg3 {[%emt 0:01:25]} Kh8 {[%emt 0:03:50]} 18. Rf1 {[%emt 0:03:05]} Nd4 {[%emt 0:13:52]} 19. Rxf8+ {[%emt 0:01:33]} Bxf8 {[%emt 0:03:24]} 20. Bg5 {[%emt 0:05:08]} Be7 {[%emt 0:01:29]} 21. Bxe7 {[%emt 0:00:37]} Qxe7 {[%emt 0:00:07]} 22. c3 {[%emt 0:00:26]} Nc6 {[%emt 0:03:03]} 23. Re1 {[%emt 0:00:54]} Qc5+ {[%emt 0:02:18]} 24. d4 {[%emt 0:01:48]} exd4 {[%emt 0:02:45]} 25. Kh2 {[%emt 0:00:29]} Rd8 {[%emt 0:00:59]} 26. cxd4 {[%emt 0:04:17]} Qxd4 {[%emt 0:01:21]} 27. Qe6 {[%emt 0:01:34]} g6 {[%emt 0:01:18]} 28. Qf7 {[%emt 0:02:06]} Qd7 {[%emt 0:00:25]} 29. Qf6+ {[%emt 0:03:14]} Kg8 {[%emt 0:00:10]} 30. Qc3 {[%emt 0:04:37]} Qd3 {[%emt 0:00:59]} 31. Re8+ {[%emt 0:01:27]} Kf7 {[%emt 0:00:04]} 32. Rxd8 {[%emt 0:04:04]} Qxc3 {[%emt 0:00:09]} 33. bxc3 {[%emt 0:00:10]} Nxd8 {[%emt 0:00:04]} 0-1

[Event "AUT Bundesliga Women 2021-22"]
[Site "Austria"]
[Date "2022.03.25"]
[Round "5.18"]
[White "Klek, Hanna Marie"]
[Black "Heinemann, Josefine"]
[Result "1-0"]
[ECO "B90"]
[WhiteElo "2314"]
[BlackElo "2290"]
[Annotator "NA"]
[PlyCount "55"]
[EventDate "2021.11.06"]
[EventType "team-tourn"]
[EventCountry "AUT"]
[SourceTitle "playchess.com"]
[Source "ChessBase"]
[SourceQuality "1"]
[TimeControl "40/5400+30:1800+30"]

1. e4 {[%emt 0:00:02]} c5 {[%emt 0:00:06]} 2. Nf3 {[%emt 0:00:05]} d6 {[%emt 0:00:19]} 3. d4 {[%emt 0:00:06]} cxd4 {[%emt 0:00:05]} 4. Nxd4 {[%emt 0:00:04]} Nf6 {[%emt 0:00:05]} 5. Nc3 {[%emt 0:00:04]} a6 {[%emt 0:00:06]} 6. Qd3 {[%emt 0:00:05]} e5 {[%emt 0:02:41]} 7. Nf5 {[%emt 0:00:10]} Bxf5 {[%emt 0:03:57]} 8. exf5 {[%emt 0:00:08]} d5 {[%emt 0:00:07]} 9. Bg5 {[%emt 0:00:44]} d4 {[%emt 0:00:55]} 10. Ne4 {[%emt 0:04:49]} Nbd7 {[%emt 0:06:00]} 11. O-O-O {[%emt 0:20:12]} Nc5 {[%emt 0:07:30]} 12. Nxc5 {[%emt 0:00:39]} Bxc5 {[%emt 0:00:06]} 13. Re1 {[%emt 0:08:35]} Qc7 {[%emt 0:14:00]} 14. f4 {[%emt 0:10:40]} e4 {[%emt 0:10:04]} 15. Bxf6 {[%emt 0:04:02]} gxf6 {[%emt 0:00:15]} 16. Qxe4+ {[%emt 0:01:35]} Kf8 {[%emt 0:01:47]} 17. Qf3 {[%emt 0:06:58]} Re8 {[%emt 0:06:12]} 18. Rxe8+ {[%emt 0:00:38]} Kxe8 {[%emt 0:00:06]} 19. Bxa6 {[%emt 0:01:17]} bxa6 {[%emt 0:10:49]} 20. Qa8+ {[%emt 0:00:22]} Kd7 {[%emt 0:01:08]} 21. Qxh8 {[%emt 0:00:21]} d3 {[%emt 0:00:20]} 22. cxd3 {[%emt 0:07:18]} Bd4+ {[%emt 0:01:29]} 23. Kd1 {[%emt 0:01:19]} Bxb2 {[%emt 0:08:22]} 24. Re1 {[%emt 0:05:39]} Qc1+ {[%emt 0:01:01]} 25. Ke2 {[%emt 0:00:06]} Qxf4 {[%emt 0:03:06]} 26. Qa8 {[%emt 0:01:18]} Bc3 {[%emt 0:06:46]} 27. Qd5+ {[%emt 0:01:16]} Ke8 {[%emt 0:04:31]} 28. Qc6+ {[%emt 0:00:16]} 1-0

[Event "AUT Bundesliga Women 2021-22"]
[Site "Austria"]
[Date "2022.03.25"]
[Round "5.20"]
[White "Wunderl, Eva"]
[Black "Trippold, Denise"]
[Result "1/2-1/2"]
[ECO "C07"]
[WhiteElo "1898"]
[BlackElo "2068"]
[Annotator "NA"]
[PlyCount "60"]
[EventDate "2021.11.06"]
[EventType "team-tourn"]
[EventCountry "AUT"]
[SourceTitle "playchess.com"]
[Source "ChessBase"]
[SourceQuality "1"]
[TimeControl "40/5400+30:1800+30"]

1. e4 {[%emt 0:00:05]} e6 {[%emt 0:00:03]} 2. d4 {[%emt 0:00:20]} d5 {[%emt 0:00:04]} 3. Nd2 {[%emt 0:00:07]} c5 {[%emt 0:00:08]} 4. Ngf3 {[%emt 0:00:31]} cxd4 {[%emt 0:00:14]} 5. exd5 {[%emt 0:00:20]} Qxd5 {[%emt 0:00:22]} 6. Bc4 {[%emt 0:00:16]} Qd7 {[%emt 0:00:17]} 7. O-O {[%emt 0:05:29]} Nc6 {[%emt 0:00:26]} 8. Nb3 {[%emt 0:01:47]} Nf6 {[%emt 0:00:45]} 9. Nbxd4 {[%emt 0:01:06]} Nxd4 {[%emt 0:00:26]} 10. Nxd4 {[%emt 0:02:05]} a6 {[%emt 0:00:32]} 11. Re1 {[%emt 0:06:06]} Bc5 {[%emt 0:12:25]} 12. Be3 {[%emt 0:07:13]} O-O {[%emt 0:10:27]} 13. c3 {[%emt 0:07:10]} Qc7 {[%emt 0:06:47]} 14. Qe2 {[%emt 0:08:53]} e5 {[%emt 0:17:43]} 15. Nc2 {[%emt 0:05:47]} Bg4 {[%emt 0:00:53]} 16. Qf1 {[%emt 0:03:58]} Rad8 {[%emt 0:04:33]} 17. h3 {[%emt 0:12:10]} Bh5 {[%emt 0:04:18]} 18. Be2 {[%emt 0:10:10]} Bg6 {[%emt 0:00:41]} 19. Bxc5 {[%emt 0:00:59]} Qxc5 {[%emt 0:00:08]} 20. Ne3 {[%emt 0:01:25]} Ne4 {[%emt 0:19:08]} 21. Red1 {[%emt 0:03:29]} h6 {[%emt 0:06:04]} 22. Rxd8 {[%emt 0:03:55]} Rxd8 {[%emt 0:00:02]} 23. Rd1 {[%emt 0:00:38]} Rd6 {[%emt 0:01:43]} 24. Rxd6 {[%emt 0:02:33]} Qxd6 {[%emt 0:03:36]} 25. Qd1 {[%emt 0:01:19]} Qb6 {[%emt 0:02:16]} 26. Qb3 {[%emt 0:02:54]} Qxb3 {[%emt 0:01:11]} 27. axb3 {[%emt 0:00:05]} Nc5 {[%emt 0:00:56]} 28. Nc4 {[%emt 0:03:17]} Bd3 {[%emt 0:04:36]} 29. Bd1 {[%emt 0:01:54]} f6 {[%emt 0:01:44]} 30. f3 {[%emt 0:01:52]} Kf8 {[%emt 0:00:31]} 1/2-1/2